bitfinex-derivatives/quotes_BTCF0:USTF0_20250901
["timestamp","ask_amount","ask_price","bid_price","bid_amount"]
[1756728328669,0.04224506,108790.0,108780.0,1.03476037]
[1756728329572,0.10167506,108790.0,108780.0,0.67396037]
[1756728329782,0.10267506,108790.0,108780.0,0.67396037]
[1756728330572,0.10167506,108790.0,108780.0,0.67396037]
[1756728330872,0.01879506,108790.0,108780.0,1.28476037]
[1756728331465,0.01979506,108790.0,108780.0,1.28476037]
[1756728331869,0.01979506,108790.0,108780.0,1.28055964]
[1756728332568,0.01979506,108790.0,108780.0,1.28155964]
[1756728332969,0.01879506,108790.0,108780.0,1.28155964]
[1756728333469,0.44368,108810.0,108800.0,0.09713]
[1756728333671,0.06713418,108810.0,108800.0,0.67867037]
[1756728334368,0.04429418,108810.0,108800.0,0.67867037]
[1756728334578,0.02084418,108810.0,108800.0,1.03947037]
[1756728334873,0.002,108810.0,108800.0,1.28947037]
[1756728336776,0.04059,108810.0,108800.0,1.77955037]
[1756728337466,0.04059,108810.0,108800.0,1.53801]
[1756728337672,0.04059,108810.0,108800.0,1.77955037]
[1756728338271,0.004,108810.0,108800.0,1.77955037]
[1756728338473,0.04059,108810.0,108800.0,1.52955037]
[1756728339572,0.004,108810.0,108800.0,1.52955037]
[1756728339777,0.02745,108810.0,108800.0,0.67867037]
[1756728339977,0.02745,108810.0,108800.0,1.52911037]
[1756728340479,0.02745,108810.0,108800.0,1.52875037]
[1756728340673,0.02745,108810.0,108800.0,0.67867037]
[1756728340878,0.02745,108810.0,108800.0,1.52875037]
[1756728343384,0.004,108810.0,108800.0,1.52875037]
[1756728343783,0.004,108810.0,108800.0,1.28721]
[1756728343982,0.004,108810.0,108800.0,1.52875037]
[1756728344182,0.93922037,108810.0,108800.0,0.08242]
[1756728344791,1.18076074,108810.0,108800.0,0.08242]
[1756728345085,0.93922037,108810.0,108800.0,0.08242]
[1756728345478,0.96005156,108810.0,108800.0,0.04726]
[1756728346086,1.20159193,108810.0,108770.0,0.8050129]
[1756728346284,0.40709,108800.0,108790.0,0.08242]
[1756728346585,0.89863037,108800.0,108790.0,0.42242]
[1756728346793,0.93522037,108800.0,108790.0,0.42242]
[1756728347383,0.44468,108800.0,108790.0,0.42242]
[1756728347780,0.3618,108800.0,108790.0,1.51312037]
[1756728348081,0.001,108800.0,108790.0,1.51312037]
[1756728348477,0.001,108800.0,108790.0,1.76312037]
[1756728348884,0.3608,108810.0,108790.0,2.08876037]
[1756728349094,0.4666122,108810.0,108800.0,0.09896]
[1756728349283,0.4666122,108810.0,108800.0,0.43896]
[1756728350990,0.4686122,108810.0,108800.0,0.43896]
[1756728351190,0.44777,108810.0,108800.0,0.43896]
[1756728351486,0.04964,108810.0,108800.0,0.43896]
[1756728351686,0.04964,108810.0,108800.0,0.74019455]
[1756728351687,0.002,108810.0,108800.0,0.74019455]
[1756728351886,0.004,108810.0,108800.0,0.74019455]
[1756728352091,0.004,108810.0,108800.0,1.10099455]
[1756728352296,0.004,108810.0,108800.0,1.35099455]
[1756728353790,0.004,108810.0,108800.0,1.3714585]
[1756728354092,0.004,108810.0,108800.0,1.37145469]
[1756728355595,0.004,108810.0,108800.0,2.21977469]
[1756728357589,0.004,108810.0,108800.0,2.21981428]
[1756728358898,0.004,108810.0,108800.0,1.37149428]
[1756728359098,0.004,108810.0,108800.0,2.21929428]
[1756728359298,0.004,108810.0,108800.0,1.96929428]
[1756728359896,0.004,108810.0,108800.0,1.66805973]
[1756728360098,0.004,108810.0,108800.0,1.96929428]
[1756728360498,0.004,108810.0,108800.0,2.21929428]
[1756728360899,0.004,108810.0,108800.0,1.07025973]
[1756728361105,0.004,108810.0,108800.0,2.21957428]
[1756728361593,0.39813,108830.0,108810.0,0.03542]
[1756728361794,0.75993114,108830.0,108820.0,0.0838]
[1756728361996,0.46726114,108830.0,108820.0,0.77541518]
[1756728362200,0.06913114,108830.0,108820.0,1.62353518]
[1756728362400,0.0248,108830.0,108820.0,1.62353518]
[1756728362601,0.39813,108840.0,108820.0,1.62353518]
[1756728362796,0.46725848,108840.0,108830.0,0.0838]
[1756728363102,0.46725848,108840.0,108830.0,0.4038]
[1756728363493,0.46725848,108840.0,108830.0,0.0838]
[1756728365001,0.46725848,108840.0,108830.0,0.15674311]
[1756728365905,0.47025848,108840.0,108830.0,0.15674311]
[1756728366294,0.47425848,108840.0,108830.0,0.15674311]
[1756728369814,0.47425848,108840.0,108830.0,0.51674311]
[1756728370015,0.47425848,108840.0,108830.0,0.15674311]
[1756728370316,0.45357,108840.0,108830.0,0.76760713]
[1756728371819,0.45357,108840.0,108830.0,0.52674311]
[1756728372413,0.69443402,108840.0,108830.0,0.52674311]
[1756728372613,0.71510468,108840.0,108830.0,0.52674311]
[1756728373013,0.69443402,108840.0,108830.0,0.52674311]
[1756728373622,0.47423882,108840.0,108830.0,0.52674311]
[1756728373815,0.71510284,108840.0,108830.0,0.52674311]
[1756728378321,0.73402623,108840.0,108830.0,0.52674311]
[1756728379225,0.49316221,108840.0,108830.0,0.52674311]
[1756728379523,0.73402623,108840.0,108830.0,0.52674311]
[1756728380124,0.49316221,108840.0,108830.0,0.52674311]
[1756728380619,0.49316221,108840.0,108830.0,0.76760713]
[1756728380925,0.02592339,108840.0,108830.0,1.37840713]
[1756728381320,0.02492339,108840.0,108830.0,1.37840713]
[1756728381724,0.02292339,108840.0,108830.0,1.37840713]
[1756728382322,0.02092339,108840.0,108830.0,1.37940713]
[1756728383513,0.02092339,108840.0,108830.0,1.4452918]
[1756728383714,0.01892339,108840.0,108830.0,1.4472918]
[1756728383914,0.01892339,108840.0,108830.0,1.5391785]
[1756728384121,0.09881245,108860.0,108850.0,0.08398]
[1756728384321,0.09881245,108860.0,108850.0,1.06564402]
[1756728385325,0.01829245,108860.0,108850.0,1.07994402]
[1756728386219,0.01829245,108860.0,108850.0,1.92674402]
[1756728387021,0.01929245,108860.0,108850.0,1.92674402]
[1756728388922,0.001,108860.0,108850.0,2.17674402]
[1756728389523,0.001,108860.0,108850.0,1.32994402]
[1756728389722,0.001,108860.0,108850.0,1.92690402]
[1756728389930,0.03504,108860.0,108850.0,1.92690402]
[1756728390227,0.03504,108860.0,108850.0,1.07994402]
[1756728390425,0.03504,108860.0,108850.0,1.67178]
[1756728390622,0.08152,108860.0,108850.0,1.67182]
[1756728391620,0.04748,108860.0,108850.0,1.92698402]
[1756728393532,0.001,108860.0,108850.0,1.92798402]
[1756728394425,0.001,108860.0,108850.0,2.26985352]
[1756728394626,0.001,108860.0,108850.0,2.17798402]
[1756728394829,0.39484,108880.0,108850.0,2.23361352]
[1756728395028,0.44132,108880.0,108870.0,0.32484402]
[1756728395331,0.44132,108880.0,108870.0,1.19260402]
[1756728395827,0.44132,108880.0,108870.0,0.34484402]
[1756728396030,0.44132,108880.0,108870.0,0.08398]
[1756728396231,0.44132,108880.0,108870.0,0.09350694]
[1756728396431,0.44232,108880.0,108870.0,0.09350694]
[1756728396832,0.68318402,108880.0,108870.0,0.09350694]
[1756728397933,0.44232,108880.0,108870.0,0.09350694]
[1756728398133,0.44232,108880.0,108870.0,0.11350694]
[1756728398922,0.44232,108880.0,108870.0,0.35437096]
[1756728399433,0.44232,108880.0,108870.0,0.11350694]
[1756728400732,0.44232,108880.0,108870.0,0.09350694]
[1756728402833,0.44232,108880.0,108870.0,0.33437096]
[1756728403335,0.08152,108880.0,108870.0,0.68437096]
[1756728403938,0.08152,108880.0,108870.0,0.44350694]
[1756728404133,0.08152,108880.0,108870.0,0.68437096]
[1756728406834,0.68318402,108880.0,108870.0,0.05726694]
[1756728407041,0.68318402,108880.0,108870.0,0.09350694]
[1756728407435,0.44232,108880.0,108870.0,0.09350694]
[1756728407736,0.68318402,108880.0,108870.0,0.09350694]
[1756728408546,0.44232,108880.0,108870.0,0.68437096]
[1756728408841,0.44232,108880.0,108870.0,0.33437096]
[1756728409042,0.44232,108880.0,108870.0,0.09350694]
[1756728409443,0.46300019,108880.0,108870.0,0.09350694]
[1756728409643,0.70386421,108880.0,108870.0,0.09432694]
[1756728410443,0.46300019,108880.0,108870.0,0.09432694]
[1756728411948,0.10220019,108880.0,108870.0,0.09432694]
[1756728412545,0.46300019,108880.0,108870.0,0.69519096]
[1756728412746,0.10220019,108880.0,108870.0,0.69519096]
[1756728412949,0.08152,108880.0,108870.0,0.69519096]
[1756728413835,0.08152,108880.0,108870.0,1.05599096]
[1756728414341,0.04748,108880.0,108870.0,1.05599096]
[1756728414548,0.02432,108880.0,108870.0,1.29685498]
[1756728415040,0.001,108880.0,108870.0,1.29685498]
[1756728415946,0.001,108880.0,108870.0,1.54685498]
[1756728416743,0.001,108880.0,108870.0,1.61273965]
[1756728418754,0.001,108880.0,108870.0,1.13101161]
[1756728418947,0.001,108880.0,108870.0,1.54685498]
[1756728419146,0.001,108880.0,108870.0,1.36273965]
[1756728420745,0.001,108880.0,108870.0,1.70459245]
[1756728421151,0.001,108880.0,108870.0,1.61273965]
[1756728423646,0.001,108880.0,108870.0,1.54685498]
[1756728424341,0.001,108880.0,108870.0,2.39297498]
[1756728425347,0.001,108880.0,108870.0,2.48482788]
[1756728426150,0.001,108880.0,108870.0,2.74932788]
[1756728427149,0.03446,108900.0,108880.0,0.37930842]
[1756728427353,0.04626,108900.0,108890.0,1.53108402]
[1756728427547,0.03446,108910.0,108890.0,1.87108402]
[1756728427747,0.10142801,108910.0,108900.0,0.32452402]
[1756728428042,0.10142801,108910.0,108900.0,0.64452402]
[1756728428441,0.10142801,108910.0,108900.0,0.76446]
[1756728428655,0.10142801,108910.0,108900.0,0.64452402]
[1756728428848,0.10142801,108910.0,108900.0,0.88538804]
[1756728429054,0.04626,108910.0,108900.0,1.25980804]
[1756728429251,0.05026,108910.0,108900.0,1.25980804]
[1756728429750,0.009,108910.0,108900.0,1.25980804]
[1756728430151,0.009,108910.0,108900.0,1.01894402]
[1756728430345,0.04346,108910.0,108900.0,1.86470402]
[1756728430950,0.04146,108910.0,108900.0,1.86470402]
[1756728431450,0.04146,108910.0,108900.0,1.93729179]
[1756728432154,0.002,108910.0,108900.0,1.69642777]
[1756728432355,0.005,108910.0,108900.0,1.93729179]
[1756728432955,0.002,108910.0,108900.0,1.69742777]
[1756728433150,0.002,108910.0,108900.0,2.17915581]
[1756728433659,0.002,108910.0,108900.0,1.33339581]
[1756728433851,0.03446,108910.0,108900.0,2.17955581]
[1756728434047,0.02325,108910.0,108900.0,2.17955581]
[1756728434351,0.04626,108910.0,108900.0,2.14249581]
[1756728434551,0.04626,108910.0,108900.0,1.90063179]
[1756728434756,0.08072,108910.0,108900.0,1.93869179]
[1756728434958,0.04626,108910.0,108900.0,1.93869179]
[1756728437753,0.02325,108910.0,108900.0,1.93869179]
[1756728438353,0.41429461,108930.0,108910.0,0.03706]
[1756728438560,0.41429461,108930.0,108910.0,0.42366]
[1756728438561,0.08072,108920.0,108910.0,0.42366]
[1756728438747,0.08072,108920.0,108910.0,0.66452402]
[1756728438955,0.04626,108920.0,108910.0,0.66452402]
[1756728439457,0.08034,108920.0,108910.0,0.66452402]
[1756728439657,0.44103,108930.0,108920.0,0.08404]
[1756728439852,0.44103,108930.0,108920.0,0.66490402]
[1756728440053,0.44103,108930.0,108920.0,0.32490402]
[1756728441059,0.44403,108930.0,108920.0,0.32490402]
[1756728441464,0.44403,108930.0,108920.0,0.08404]
[1756728441756,0.44403,108930.0,108920.0,0.32490402]
[1756728441960,0.44403,108930.0,108920.0,0.68490402]
[1756728442157,0.44403,108930.0,108920.0,1.53236489]
[1756728442462,0.40995,108930.0,108920.0,1.51214402]
[1756728442657,0.0031,108930.0,108920.0,1.87294402]
[1756728443164,0.0031,108930.0,108920.0,2.12294402]
[1756728443757,0.0031,108930.0,108920.0,2.1325061]
[1756728444264,0.0031,108930.0,108920.0,2.37337012]
[1756728444456,0.0031,108930.0,108920.0,2.1325061]
[1756728445059,0.0031,108930.0,108920.0,1.0352661]
[1756728445252,0.0031,108930.0,108920.0,1.8823061]
[1756728445468,0.0031,108930.0,108920.0,1.8821461]
[1756728445854,0.0031,108930.0,108920.0,0.43360208]
[1756728446064,0.57409402,108930.0,108920.0,0.43360208]
[1756728446259,0.33323,108930.0,108920.0,0.43360208]
[1756728446458,0.69403,108930.0,108920.0,0.6744661]
[1756728446660,0.33323,108930.0,108920.0,0.6744661]
[1756728447056,0.69403,108930.0,108920.0,0.6744661]
[1756728448462,0.33323,108930.0,108920.0,0.6744661]
[1756728448670,0.0031,108930.0,108920.0,1.0352661]
[1756728450270,0.08323,108930.0,108920.0,1.5239861]
[1756728450571,0.08323,108930.0,108920.0,1.5239461]
[1756728451570,0.0031,108930.0,108920.0,1.5239461]
[1756728452663,0.0031,108930.0,108920.0,1.8847461]
[1756728454376,0.03718,108930.0,108920.0,1.0352661]
[1756728454580,0.44403,108930.0,108920.0,1.28248208]
[1756728454780,0.08323,108930.0,108920.0,1.5233461]
[1756728454984,0.08323,108930.0,108920.0,1.5633461]
[1756728455377,0.08323,108930.0,108920.0,1.32248208]
[1756728455680,0.08323,108930.0,108920.0,1.5633461]
[1756728456780,0.08323,108930.0,108920.0,0.7144661]
[1756728456983,0.08323,108930.0,108920.0,1.5631061]
[1756728458387,0.08323,108930.0,108920.0,1.32224208]
[1756728458585,0.08323,108930.0,108920.0,1.5631061]
[1756728459386,0.08323,108930.0,108920.0,0.7144661]
[1756728459583,0.69403,108930.0,108920.0,1.32176208]
[1756728460280,0.33323,108930.0,108920.0,1.5626261]
[1756728460677,0.29915,108930.0,108920.0,1.5626261]
[1756728460882,0.0031,108930.0,108920.0,1.9234261]
[1756728461382,0.08323,108930.0,108920.0,0.7144661]
[1756728461583,0.44403,108930.0,108920.0,1.5623861]
[1756728461782,0.08323,108930.0,108920.0,1.5623861]
[1756728462977,0.08323,108930.0,108920.0,1.32144208]
[1756728463187,0.33323,108930.0,108920.0,1.5623061]
[1756728463589,0.69403,108930.0,108920.0,1.5623061]
[1756728463991,0.33323,108930.0,108920.0,1.5623061]
[1756728464284,0.29915,108930.0,108920.0,1.5623061]
[1756728464484,0.29915,108930.0,108920.0,1.9231061]
[1756728464683,0.29915,108930.0,108920.0,1.5623061]
[1756728465085,0.04915,108930.0,108920.0,1.5623061]
[1756728465390,0.0031,108930.0,108920.0,1.9231061]
[1756728467087,0.3608,108950.0,108940.0,0.08404]
[1756728467293,0.06673963,108950.0,108940.0,1.52218402]
[1756728467591,0.05476963,108950.0,108940.0,1.28132]
[1756728467789,0.38148963,108950.0,108940.0,1.52218402]
[1756728468089,0.41556963,108950.0,108940.0,1.52218402]
[1756728468585,0.41856963,108950.0,108940.0,1.52218402]
[1756728468892,0.06176963,108950.0,108940.0,1.52218402]
[1756728469089,0.02768963,108950.0,108940.0,1.52218402]
[1756728470590,0.3608,108960.0,108950.0,0.09696]
[1756728470893,0.3608,108960.0,108950.0,0.71806773]
[1756728470894,0.38144719,108960.0,108950.0,0.71806773]
[1756728471095,0.02064719,108960.0,108950.0,0.71806773]
[1756728471794,0.02264719,108960.0,108950.0,0.71806773]
[1756728471993,0.004,108960.0,108950.0,0.71806773]
[1756728473090,0.004,108960.0,108950.0,1.07886773]
[1756728474395,0.71623498,108960.0,108950.0,0.10307371]
[1756728474893,0.73686473,108960.0,108950.0,0.02024371]
[1756728475088,0.73686473,108960.0,108940.0,0.02458]
[1756728475089,0.0975,108950.0,108940.0,0.02458]
[1756728475289,0.46399975,108950.0,108940.0,0.04745]
[1756728475596,0.46400108,108950.0,108940.0,0.08283]
[1756728476284,0.46400108,108950.0,108940.0,0.08483]
[1756728476486,0.7048651,108950.0,108940.0,0.04945]
[1756728476689,0.7197951,108950.0,108940.0,0.04945]
[1756728476995,2.1432351,108950.0,108940.0,0.002]
[1756728477996,1.58237108,108950.0,108940.0,0.002]
[1756728478199,2.1832351,108950.0,108940.0,0.002]
[1756728478496,2.1842351,108950.0,108940.0,0.001]
[1756728478792,2.1342351,108950.0,108940.0,0.001]
[1756728478997,1.31800108,108950.0,108940.0,0.08383]
[1756728479497,1.5588651,108950.0,108940.0,0.08283]
[1756728480190,1.5727951,108950.0,108940.0,0.02458]
[1756728480397,1.5727951,108950.0,108940.0,0.001]
[1756728480587,1.33193108,108950.0,108940.0,0.001]
[1756728480992,1.5727951,108950.0,108940.0,0.02558]
[1756728481794,1.5727951,108950.0,108940.0,0.001]
[1756728482801,1.33193108,108950.0,108940.0,0.001]
[1756728483000,1.5727951,108950.0,108940.0,0.001]
[1756728483191,1.33193108,108950.0,108940.0,0.001]
[1756728483392,1.5727951,108950.0,108940.0,0.001]
[1756728483593,1.5727951,108950.0,108940.0,0.02558]
[1756728484394,1.5727951,108950.0,108940.0,0.001]
[1756728484797,1.33193108,108950.0,108940.0,0.001]
[1756728485100,1.5727951,108950.0,108940.0,0.001]
[1756728487201,1.5727951,108950.0,108940.0,0.02558]
[1756728487402,0.7197951,108950.0,108940.0,0.04845]
[1756728487598,1.5720751,108950.0,108940.0,0.04845]
[1756728488203,1.5720751,108950.0,108940.0,0.02558]
[1756728488405,1.5720751,108950.0,108940.0,0.001]
[1756728489400,1.33121108,108950.0,108940.0,0.04845]
[1756728489601,1.31584108,108950.0,108940.0,0.08383]
[1756728489794,0.44337,108950.0,108940.0,0.32469402]
[1756728490102,1.29521,108950.0,108940.0,0.32469402]
[1756728490406,1.29521,108950.0,108940.0,0.39383]
[1756728490600,0.44337,108950.0,108940.0,0.63469402]
[1756728493407,0.44337,108950.0,108940.0,0.64469402]
[1756728493604,0.4069,108950.0,108940.0,0.89469402]
[1756728494000,0.4069,108950.0,108940.0,0.65383]
[1756728494307,0.3608,108950.0,108940.0,0.89469402]
[1756728494507,0.44337,108950.0,108940.0,0.89469402]
[1756728494696,0.0461,108950.0,108940.0,0.89469402]
[1756728495198,0.06496498,108960.0,108950.0,0.08283]
[1756728495396,0.06496498,108960.0,108950.0,0.68369402]
[1756728495805,0.04168498,108960.0,108950.0,0.94782402]
[1756728496000,0.04168498,108960.0,108950.0,1.30862402]
[1756728496607,0.01886498,108960.0,108950.0,1.30862402]
[1756728497708,0.01986498,108960.0,108950.0,1.30862402]
[1756728497904,0.02086498,108960.0,108950.0,1.30862402]
[1756728498304,0.01986498,108960.0,108950.0,1.30862402]
[1756728498506,0.01986498,108960.0,108950.0,2.16110402]
[1756728498903,0.01886498,108960.0,108950.0,2.16310402]
[1756728499509,0.01886498,108960.0,108950.0,1.31162402]
[1756728499711,0.05601498,108960.0,108950.0,1.65779]
[1756728500010,0.05601498,108960.0,108950.0,1.04749402]
[1756728500209,0.06702498,108960.0,108950.0,0.99749402]
[1756728500408,0.01886498,108960.0,108950.0,1.01114402]
[1756728501113,0.01886498,108960.0,108950.0,1.26114402]
[1756728503312,0.01886498,108960.0,108950.0,2.11190402]
[1756728503816,0.01886498,108960.0,108950.0,1.87104]
[1756728504115,0.01886498,108960.0,108950.0,2.11190402]
[1756728504306,0.01886498,108960.0,108950.0,1.87104]
[1756728504511,0.01886498,108960.0,108950.0,2.11150402]
[1756728507211,0.05601498,108960.0,108950.0,1.24749402]
[1756728507411,0.955839,108960.0,108950.0,0.90133]
[1756728507612,0.955839,108960.0,108950.0,0.05045]
[1756728508017,0.71497498,108960.0,108950.0,0.08673]
[1756728508517,0.35417498,108960.0,108950.0,0.32759402]
[1756728508817,0.35417498,108960.0,108950.0,0.68759402]
[1756728509114,0.35417498,108960.0,108950.0,0.44673]
[1756728509310,0.39795,108970.0,108960.0,0.03628]
[1756728509516,0.08531,108970.0,108960.0,0.34476874]
[1756728509717,0.08531,108970.0,108960.0,0.41863069]
[1756728510215,0.08531,108970.0,108960.0,0.43863069]
[1756728510819,0.08531,108970.0,108960.0,0.76863069]
[1756728511313,0.04816,108970.0,108960.0,0.76863069]
[1756728511619,0.04816,108970.0,108960.0,1.29047069]
[1756728512711,0.04816,108970.0,108960.0,1.63047069]
[1756728512911,0.08531,108970.0,108960.0,1.63047069]
[1756728513109,0.04816,108970.0,108960.0,1.63047069]
[1756728513311,0.3608,108980.0,108960.0,1.87133471]
[1756728513518,0.44611,108980.0,108970.0,0.32438402]
[1756728513715,0.44611,108980.0,108970.0,0.65438402]
[1756728514323,0.08531,108980.0,108970.0,0.65438402]
[1756728515320,0.44711,108980.0,108970.0,0.66352583]
[1756728515714,0.44711,108980.0,108970.0,0.42266181]
[1756728515914,0.44711,108980.0,108970.0,0.66352583]
[1756728516724,0.44811,108980.0,108970.0,0.66352583]
[1756728517217,0.08731,108980.0,108970.0,0.66352583]
[1756728518915,0.08731,108980.0,108970.0,0.41266181]
[1756728519121,0.32817402,108980.0,108970.0,0.40266181]
[1756728520227,0.002,108980.0,108970.0,0.40266181]
[1756728520524,0.08731,108980.0,108970.0,0.40266181]
[1756728520714,0.08731,108980.0,108970.0,0.64352583]
[1756728523425,0.10792486,108980.0,108970.0,0.64352583]
[1756728523625,0.08731,108980.0,108970.0,0.64352583]
[1756728524229,0.08731,108980.0,108970.0,0.40266181]
[1756728524428,0.08731,108980.0,108970.0,0.64352583]
[1756728524924,0.05016,108980.0,108970.0,0.64352583]
[1756728525227,0.002,108980.0,108970.0,1.00432583]
[1756728526223,0.002,108980.0,108970.0,1.86896583]
[1756728526827,0.002,108980.0,108970.0,1.00432583]
[1756728527027,0.002,108980.0,108970.0,1.86868583]
[1756728530422,0.002,108980.0,108970.0,1.00432583]
[1756728530618,0.08223,108980.0,108970.0,0.64352583]
[1756728530822,0.08223,108980.0,108970.0,1.50684583]
[1756728531824,0.002,108980.0,108970.0,1.50684583]
[1756728532929,0.03626,108980.0,108970.0,0.64352583]
[1756728533128,0.002,108980.0,108970.0,1.50644583]
[1756728533638,0.002,108980.0,108970.0,0.64352583]
[1756728533829,0.04797,108980.0,108970.0,1.50812583]
[1756728534934,0.08223,108980.0,108970.0,1.50784583]
[1756728537129,0.08223,108980.0,108970.0,0.64352583]
[1756728537130,0.04797,108980.0,108970.0,0.64352583]
[1756728537334,0.04797,108980.0,108970.0,1.50720583]
[1756728537836,0.04797,108980.0,108970.0,0.40266181]
[1756728538028,0.46360141,108980.0,108970.0,0.64352583]
[1756728538234,0.10280141,108980.0,108970.0,0.64352583]
[1756728538434,0.46360141,108980.0,108970.0,0.64352583]
[1756728539139,0.46360141,108980.0,108970.0,1.26610181]
[1756728540342,0.95446543,108980.0,108970.0,0.40266181]
[1756728540540,0.71360141,108980.0,108970.0,0.40266181]
[1756728546546,0.71360141,108980.0,108970.0,0.64352583]
[1756728547344,0.69303,108980.0,108970.0,0.40266181]
[1756728550954,0.08223,108980.0,108970.0,0.64352583]
[1756728551548,0.08223,108980.0,108970.0,0.40266181]
[1756728552041,0.08223,108980.0,108970.0,0.64352583]
[1756728553552,0.08123,108980.0,108970.0,0.64352583]
[1756728553852,0.10083367,108980.0,108970.0,0.40466181]
[1756728554050,0.10083367,108980.0,108970.0,0.40766181]
[1756728554449,0.10083367,108980.0,108970.0,0.64852583]
[1756728555058,0.10083367,108980.0,108970.0,1.51036583]
[1756728555554,0.10083367,108980.0,108970.0,0.64852583]
[1756728556656,0.10083367,108980.0,108970.0,0.64652583]
[1756728556857,0.10083367,108980.0,108970.0,0.40766181]
[1756728557057,0.10083367,108980.0,108970.0,0.64852583]
[1756728557552,0.45985076,108990.0,108980.0,0.08319]
[1756728557853,0.45985076,108990.0,108980.0,0.66413283]
[1756728558050,0.45985076,108990.0,108980.0,0.41413283]
[1756728558252,0.70071478,108990.0,108980.0,0.17326881]
[1756728558448,0.08023,108980.0,108970.0,0.05626]
[1756728558655,0.68189402,108980.0,108970.0,0.36958]
[1756728559049,0.68189402,108980.0,108970.0,0.36758]
[1756728559253,0.68189402,108980.0,108970.0,0.37899379]
[1756728559454,0.68189402,108980.0,108970.0,0.40311379]
[1756728559654,0.68189402,108980.0,108970.0,0.3937]
[1756728559854,0.68189402,108980.0,108970.0,0.36958]
[1756728560056,0.68189402,108980.0,108970.0,0.36758]
[1756728560254,0.68189402,108980.0,108970.0,0.41554]
[1756728560454,0.68189402,108980.0,108970.0,0.36758]
[1756728560652,0.93189402,108980.0,108970.0,0.36758]
[1756728560852,0.93189402,108980.0,108970.0,0.33008]
[1756728562559,0.08339,108970.0,108960.0,0.07386195]
[1756728562760,1.901326,108970.0,108950.0,0.03523]
[1756728562958,0.68505402,108960.0,108950.0,0.08319]
[1756728563155,1.30591804,108960.0,108940.0,0.03523]
[1756728563356,0.68505402,108950.0,108940.0,0.08319]
[1756728564662,0.68505402,108950.0,108940.0,0.09245939]
[1756728565263,0.44419,108950.0,108940.0,0.09245939]
[1756728565464,0.68505402,108950.0,108940.0,0.09245939]
[1756728565658,0.68505402,108950.0,108940.0,0.09345939]
[1756728566358,0.68505402,108950.0,108940.0,0.09445939]
[1756728566559,0.68605402,108950.0,108940.0,0.42445939]
[1756728567162,0.68605402,108950.0,108940.0,0.42345939]
[1756728571270,0.68605402,108950.0,108940.0,0.41419]
[1756728571460,0.68605402,108950.0,108940.0,0.04896]
[1756728571661,1.55153402,108950.0,108940.0,0.08419]
[1756728572667,0.44519,108950.0,108940.0,0.08419]
[1756728572869,1.55149402,108950.0,108940.0,0.08419]
[1756728574067,1.55141402,108950.0,108940.0,0.08419]
[1756728575668,1.55141402,108950.0,108940.0,0.46419]
[1756728577372,0.68605402,108950.0,108940.0,0.46419]
[1756728577670,1.55029402,108950.0,108940.0,0.46419]
[1756728578274,1.30943,108950.0,108940.0,0.46419]
[1756728578475,1.55029402,108950.0,108940.0,0.46419]
[1756728578974,1.55029402,108950.0,108940.0,0.42896]
[1756728579273,1.55029402,108950.0,108940.0,0.04896]
[1756728579573,1.55013402,108950.0,108940.0,0.04896]
[1756728579774,1.55013402,108950.0,108940.0,0.08419]
[1756728579775,1.30927,108950.0,108940.0,0.08419]
[1756728579976,0.68605402,108950.0,108940.0,0.46419]
[1756728580170,1.54957402,108950.0,108940.0,0.46419]
[1756728582777,1.54957402,108950.0,108940.0,0.08419]
[1756728582979,1.30871,108950.0,108940.0,0.08419]
[1756728583273,1.54957402,108950.0,108940.0,0.08419]
[1756728583968,1.54957402,108950.0,108940.0,0.04896]
[1756728584476,1.54957402,108950.0,108940.0,0.08419]
[1756728584778,0.68605402,108950.0,108940.0,0.08419]
[1756728585078,1.54861402,108950.0,108940.0,0.45419]
[1756728585778,1.54861402,108950.0,108940.0,0.10419]
[1756728585980,1.54861402,108950.0,108940.0,0.46419]
[1756728586576,1.54861402,108950.0,108940.0,0.10419]
[1756728586778,0.68605402,108950.0,108940.0,0.41419]
[1756728587176,1.54801402,108950.0,108940.0,0.41419]
[1756728587577,1.54801402,108950.0,108940.0,0.08419]
[1756728587776,1.54801402,108950.0,108940.0,0.43419]
[1756728587976,0.68605402,108950.0,108940.0,0.43419]
[1756728588280,1.54789402,108950.0,108940.0,0.43419]
[1756728588575,0.44519,108950.0,108940.0,0.43419]
[1756728588779,0.001,108950.0,108940.0,1.54779]
[1756728588976,0.001,108950.0,108940.0,1.88044812]
[1756728589171,0.3608,108970.0,108960.0,0.08314]
[1756728589373,0.3849,108970.0,108960.0,1.51804402]
[1756728589681,0.3608,108970.0,108960.0,1.60982132]
[1756728589983,0.3608,108970.0,108960.0,1.85982132]
[1756728590177,0.03482,108980.0,108960.0,2.10068534]
[1756728590375,0.08157,108980.0,108970.0,0.32306402]
[1756728590574,0.08157,108980.0,108970.0,0.68306402]
[1756728593381,0.08157,108980.0,108970.0,0.68406402]
[1756728593576,0.08157,108980.0,108970.0,0.68606402]
[1756728596484,0.04675,108980.0,108970.0,0.68606402]
[1756728598086,0.08157,108980.0,108970.0,0.68606402]
[1756728598485,0.04675,108980.0,108970.0,0.68606402]
[1756728598982,0.41444076,108990.0,108970.0,0.77783302]
[1756728599193,0.46119076,108990.0,108980.0,0.32306402]
[1756728599386,0.46119076,108990.0,108980.0,0.65306402]
[1756728600885,0.46119076,108990.0,108980.0,0.65406402]
[1756728602694,0.46119076,108990.0,108980.0,0.65506402]
[1756728602994,0.46119076,108990.0,108980.0,0.66454949]
[1756728604195,0.46119076,108990.0,108980.0,0.11395816]
[1756728604393,0.46119076,108990.0,108980.0,0.71482218]
[1756728604590,0.95205478,108990.0,108980.0,0.022]
[1756728604789,0.97223111,108990.0,108980.0,0.022]
[1756728605596,0.73136709,108990.0,108980.0,0.06933]
[1756728605801,0.73136709,108990.0,108980.0,0.021]
[1756728606097,0.97223111,108990.0,108980.0,0.021]
[1756728606683,0.9814528,108990.0,108980.0,0.001]
[1756728606882,0.9814528,108990.0,108960.0,0.12103097]
[1756728606883,0.09735737,108970.0,108960.0,0.12103097]
[1756728607087,1.56114139,108970.0,108960.0,0.12103097]
[1756728607498,1.92194139,108970.0,108960.0,0.12103097]
[1756728607999,1.68107737,108970.0,108960.0,0.12103097]
[1756728608190,1.68107737,108970.0,108960.0,0.15590097]
[1756728608597,1.68107737,108970.0,108960.0,0.12103097]